bitfinex-derivatives/quotes_SOLF0:USTF0_20250307
["timestamp","ask_amount","ask_price","bid_price","bid_amount"]
[1741325021223,7.0373,142.1,142.07,0.04796899]
[1741325022826,7.0371,142.11,142.07,7.08656899]
[1741325023224,277.34648994,142.14,142.07,0.04796899]
[1741325023722,258.6,142.14,142.07,0.04796899]
[1741325023925,7.0362,142.12,142.07,7.08616899]
[1741325024223,258.6,142.14,142.07,7.08616899]
[1741325024419,7.0372,142.1,142.07,7.08616899]
[1741325024617,7.0372,142.1,142.07,0.04796899]
[1741325025225,7.0372,142.1,142.07,7.08656899]
[1741325025725,7.0368,142.11,142.07,7.08656899]
[1741325025921,44.96648994,142.16,142.06,1.884]
[1741325026123,44.96648994,142.16,142.08,0.05027936]
[1741325026626,18.74648994,142.16,142.08,0.05027936]
[1741325026826,18.74648994,142.16,142.08,26.25027936]
[1741325027126,7.0364,142.12,142.08,33.28817936]
[1741325028121,26.18,142.16,142.08,26.25027936]
[1741325028325,7.0359,142.13,142.09,7.0376]
[1741325028515,7.0359,142.13,142.08,26.25027936]
[1741325028924,7.0363,142.12,142.08,33.28817936]
[1741325030818,7.0367,142.11,142.08,26.25027936]
[1741325031827,26.18,142.16,142.08,26.25027936]
[1741325032028,7.0376,142.09,142.08,26.25027936]
[1741325036431,7.0373,142.1,142.08,26.25027936]
[1741325036634,11.98048243,142.15,142.09,11.98048243]
[1741325037031,26.02,142.16,142.11,11.98048243]
[1741325037634,7.0357,142.13,142.12,0.04896192]
[1741325039541,11.98048243,142.18,142.12,0.04896192]
[1741325039741,11.98048243,142.18,142.12,12.02944435]
[1741325040337,258.5,142.19,142.14,11.98048243]
[1741325040539,232.3,142.19,142.13,44.9029416]
[1741325040838,232.3,142.19,142.15,0.04499348]
[1741325041140,26.2,142.21,142.15,0.04499348]
[1741325041337,7.0341,142.16,142.15,0.04499348]
[1741325041741,7.0341,142.16,142.15,9.348e-05]
[1741325041941,7.0366,142.11,142.1,2.055]
[1741325042631,44.9629416,142.17,142.08,26.28]
[1741325042826,44.9629416,142.17,142.06,1.923]
[1741325042827,18.7029416,142.15,142.06,1.923]
[1741325043028,7.0361,142.12,142.11,0.04613472]
[1741325043234,26.3,142.12,142.04,3.9992]
[1741325043431,18.7029416,142.11,142.04,1.9875]
[1741325043638,7.0408,142.03,142.01,18.7029416]
[1741325043940,26.32,142.08,142.01,28.45983856]
[1741325044135,7.0405,142.04,142.01,9.75689696]
[1741325044332,0.04887836,142.06,142.03,0.04940801]
[1741325045035,7.0401,142.04,142.03,0.04940801]
[1741325045238,0.04887836,142.06,142.03,0.04940801]
[1741325046943,0.04887836,142.06,142.03,18.75234961]
[1741325047445,33.4563,142.12,142.05,18.7029416]
[1741325047643,26.42,142.13,142.07,18.7029416]
[1741325047945,258.66,142.16,142.07,18.7029416]
[1741325048138,258.66,142.16,142.08,1.8629]
[1741325048541,7.0352,142.14,142.11,0.05013305]
[1741325048741,0.0443786,142.13,142.11,0.05013305]
[1741325049846,7.0361,142.12,142.11,0.05013305]
[1741325050247,0.0443786,142.13,142.11,0.05013305]
[1741325051348,7.0361,142.12,142.11,0.05013305]
[1741325051942,139.45603556,143.12,142.11,0.05013305]
[1741325051943,26.6,142.21,142.11,0.05013305]
[1741325052145,18.7029416,142.2,142.09,45.1829416]
[1741325052343,18.7029416,142.2,142.1,2.03]
[1741325052646,7.0347,142.15,142.1,11.1167]
[1741325052847,18.7029416,142.2,142.1,4.08]
[1741325053046,18.7029416,142.2,142.14,0.04904364]
[1741325053450,45.3629416,142.2,142.14,0.04904364]
[1741325055151,18.7029416,142.18,142.14,0.04904364]
[1741325055351,7.0346,142.15,142.14,0.04904364]
[1741325055544,33.6746,142.15,142.14,0.04904364]
[1741325062554,26.66,142.18,142.14,0.04904364]
[1741325062759,42.035061,142.19,142.14,0.04904364]
[1741325062958,26.66,142.19,142.14,0.04904364]
[1741325063255,7.0346,142.15,142.14,0.04904364]
[1741325064059,7.0344,142.16,142.14,0.04904364]
[1741325065656,26.66,142.19,142.14,0.04904364]
[1741325066062,45.3629416,142.19,142.14,0.04904364]
[1741325066359,7.0346,142.15,142.14,0.04904364]
[1741325066562,18.7029416,142.19,142.14,0.04904364]
[1741325066762,7.0339,142.17,142.14,0.04904364]
[1741325067255,26.7,142.18,142.14,0.04904364]
[1741325067961,7.0345,142.16,142.14,0.04904364]
[1741325068163,26.7,142.18,142.14,0.04904364]
[1741325068457,7.0344,142.16,142.14,0.04904364]
[1741325069461,26.7,142.18,142.14,0.04904364]
[1741325069962,7.0344,142.16,142.14,0.04904364]
[1741325071162,7.0346,142.15,142.14,0.04904364]
[1741325073753,669.07002506,142.32,142.14,0.04904364]
[1741325073957,92.51163297,142.31,142.28,18.7029416]
[1741325074156,92.51163297,142.31,142.29,27.86]
[1741325074365,92.51163297,142.31,142.3,18.7029416]
[1741325074567,92.51163297,142.31,142.3,24.70440284]
[1741325074967,92.51163297,142.31,142.3,24.70418333]
[1741325075265,374.36506573,142.35,142.34,7.0252]
[1741325075466,362.69796573,142.35,142.34,60.38938333]
[1741325075666,351.35296573,142.35,142.34,63.90938333]
[1741325075866,317.82736573,142.35,142.34,63.90938333]
[1741325076053,305.98346573,142.35,142.34,63.90938333]
[1741325076260,279.87776573,142.35,142.34,63.90938333]
[1741325076456,242.41166573,142.35,142.34,63.90938333]
[1741325076660,242.41166573,142.35,142.34,75.0167782]
[1741325077068,228.76236573,142.35,142.34,75.0167782]
[1741325077367,168.49496573,142.35,142.34,104.82711467]
[1741325077669,0.28619353,142.38,142.34,176.75219577]
[1741325077862,0.28619353,142.38,142.37,29.81033647]
[1741325078063,0.28619353,142.38,142.37,35.8115782]
[1741325078262,0.28619353,142.38,142.37,33.33033647]
[1741325078766,0.28619353,142.38,142.37,39.26276635]
[1741325079167,0.28619353,142.38,142.37,142.09095404]
[1741325080469,209.23455382,142.43,142.37,138.57095404]
[1741325080658,209.23455382,142.43,142.41,29.81033647]
[1741325080858,0.29031905,142.44,142.42,28.54]
[1741325081260,190.8391638,142.5,142.42,28.54]
[1741325081466,190.8391638,142.5,142.44,29.81033647]
[1741325081761,190.8391638,142.5,142.45,0.04566449]
[1741325081971,7.0153,142.55,142.47,29.81033647]
[1741325082266,7.30669134,142.53,142.47,29.81033647]
[1741325082458,7.30669134,142.53,142.49,0.05175523]
[1741325083056,0.28704003,142.53,142.52,29.81033647]
[1741325083266,0.28704003,142.53,142.52,59.62067294]
[1741325083463,0.28855893,142.56,142.52,59.62067294]
[1741325083656,0.28855893,142.56,142.55,29.81033647]
[1741325083861,0.28855893,142.56,142.55,59.05033647]
[1741325084062,0.07808801,142.56,142.55,59.05033647]
[1741325085164,0.07808801,142.56,142.55,69.56523647]
[1741325085468,0.28301157,142.59,142.55,62.55033647]
[1741325085661,0.28301157,142.59,142.58,29.81033647]
[1741325086670,0.28301157,142.59,142.57,0.04482709]
[1741325087166,0.28301157,142.59,142.58,29.81033647]
[1741325088073,0.28471365,142.65,142.58,63.12067294]
[1741325088270,0.28471365,142.65,142.61,29.81033647]
[1741325088572,0.28596144,142.68,142.61,29.81033647]
[1741325088766,0.28596144,142.68,142.64,29.81033647]
[1741325088964,0.28596144,142.68,142.65,29.26]
[1741325089166,7.30562432,142.68,142.65,29.26]
[1741325090069,14.31422432,142.68,142.63,0.04989265]
[1741325090258,29.24,142.71,142.63,0.04989265]
[1741325090458,2.0125,142.7,142.63,0.04989265]
[1741325091070,9.0205,142.7,142.63,0.04989265]
[1741325091470,151.32764107,142.74,142.63,0.04989265]
[1741325091663,151.32764107,142.74,142.61,59.03033647]
[1741325091869,7.0066,142.72,142.67,0.04972561]
[1741325092070,151.32764107,142.74,142.67,0.04972561]
[1741325092868,7.0079,142.7,142.67,0.04972561]
[1741325093271,151.32764107,142.74,142.67,0.04972561]
[1741325094276,7.0079,142.7,142.67,0.04972561]
[1741325094579,151.11731402,142.74,142.67,0.04972561]
[1741325094971,7.0081,142.69,142.67,0.04972561]
[1741325095175,151.11731402,142.74,142.67,0.04972561]
[1741325095571,7.0085,142.68,142.67,0.04972561]
[1741325096478,7.0077,142.7,142.67,0.04972561]
[1741325096878,1.9074,142.73,142.67,0.04972561]
[1741325097181,7.008,142.69,142.67,0.04972561]
[1741325097576,1.9074,142.73,142.67,0.04972561]
[1741325097878,7.0069,142.72,142.67,0.04972561]
[1741325098070,1.9074,142.73,142.67,0.04972561]
[1741325099075,7.0074,142.71,142.67,0.04972561]
[1741325099274,1.9074,142.73,142.67,0.04972561]
[1741325099781,7.0077,142.7,142.67,0.04972561]
[1741325100079,1.9074,142.73,142.67,0.04972561]
[1741325100676,28.9,142.72,142.59,29.81033647]
[1741325100972,29.81033647,142.7,142.59,29.81033647]
[1741325101869,0.04847896,142.66,142.59,29.81033647]
[1741325102074,231.38,142.65,142.63,0.04921553]
[1741325102580,7.0109,142.64,142.63,0.04921553]
[1741325103180,7.012,142.61,142.56,29.81033647]
[1741325103378,235.2872,142.65,142.56,58.69033647]
[1741325103674,235.2872,142.65,142.56,29.81033647]
[1741325103872,1.22036751,142.72,142.57,21.15]
[1741325104074,0.28336177,142.82,142.71,59.62067294]
[1741325104268,0.28336177,142.82,142.77,29.81033647]
[1741325104477,0.28336177,142.82,142.78,31.22]
[1741325104667,0.05145493,142.79,142.78,31.22]
[1741325105886,0.05145493,142.79,142.77,0.05093321]
[1741325106587,0.05145493,142.79,142.77,48.23187921]
[1741325107184,0.05145493,142.79,142.77,0.05093321]
[1741325107683,0.28336177,142.82,142.77,0.05093321]
[1741325108884,0.04623956,142.81,142.77,0.05093321]
[1741325113283,2.00453956,142.81,142.77,0.05093321]
[1741325113484,4.01613956,142.81,142.77,0.05093321]
[1741325114185,1.9007,142.8,142.77,0.05093321]
[1741325114986,1.9007,142.8,142.73,48.180946]
[1741325115182,1.9007,142.8,142.7,79.000946]
[1741325115388,8.9036,142.8,142.7,79.000946]
[1741325115583,1.9007,142.8,142.7,79.000946]
[1741325115787,1.9007,142.8,142.75,7.005]
[1741325115980,1.9007,142.8,142.71,9.25088787]
[1741325116187,0.05396294,142.79,142.76,0.04672769]
[1741325116580,0.05396294,142.79,142.71,9.25088787]
[1741325116581,48.180946,142.78,142.71,9.25088787]
[1741325116786,30.94,142.77,142.71,9.25088787]
[1741325116987,0.28336177,142.82,142.75,48.180946]
[1741325117179,0.28336177,142.82,142.78,48.180946]
[1741325117382,0.28735974,142.85,142.81,48.180946]
[1741325117588,0.29058918,142.91,142.84,48.180946]
[1741325117988,0.11968947,142.88,142.84,48.180946]
[1741325118887,0.11968947,142.88,142.82,31.52636457]
[1741325119086,31.77968947,142.88,142.82,0.04636457]
[1741325119393,0.0532761,142.86,142.82,0.04636457]
[1741325119585,0.0532761,142.86,142.78,31.66]
[1741325119789,7.0017,142.82,142.78,31.66]
[1741325119989,231.12,142.84,142.75,79.820946]
[1741325120187,262.76,142.84,142.75,79.820946]
[1741325120795,0.05360727,142.81,142.78,0.05184258]
[1741325121896,7.0031,142.8,142.78,0.05184258]
[1741325122094,2.0494,142.8,142.76,37.0035515]
[1741325122302,7.004,142.78,142.76,37.0035515]
[1741325122903,1.977,142.79,142.76,37.0035515]
[1741325123093,7.0041,142.77,142.76,33.9161515]
[1741325123297,7.0041,142.77,142.76,27.79421967]
[1741325123900,7.0041,142.77,142.76,0.05386817]
[1741325124199,33.6294,142.8,142.77,0.21019442]
[1741325124401,33.6294,142.8,142.76,0.05386817]
[1741325124906,7.0041,142.77,142.76,0.05386817]
[1741325126704,0.04560356,142.78,142.76,0.05386817]
[1741325127205,7.0031,142.79,142.76,0.05386817]
[1741325127399,2.0494,142.8,142.76,0.05386817]
[1741325127400,7.0037,142.78,142.76,0.05386817]
[1741325127602,2.0494,142.8,142.76,0.05386817]
[1741325127804,2.0494,142.8,142.77,5.92411012]
[1741325127995,2.0494,142.8,142.76,0.05386817]
[1741325128400,0.04744733,142.79,142.77,5.9287582]
[1741325128598,0.04744733,142.79,142.76,0.05386817]
[1741325128808,0.04744733,142.79,142.77,5.92950844]
[1741325129003,0.04744733,142.79,142.78,5.92950844]
[1741325130209,0.04744733,142.79,142.76,29.72200288]
[1741325130507,0.04744733,142.79,142.76,0.05386817]
[1741325130898,0.04744733,142.79,142.77,5.78931685]
[1741325131609,0.04744733,142.79,142.77,12.79301685]
[1741325131904,0.04744733,142.79,142.77,29.66813471]
[1741325132704,0.04744733,142.79,142.76,0.05386817]
[1741325133108,0.04744733,142.79,142.76,29.72200288]
[1741325134210,0.04744733,142.79,142.76,36.72610288]
[1741325134510,0.04744733,142.79,142.76,29.72200288]
[1741325134909,7.0025,142.81,142.76,29.72200288]
[1741325134910,231.14,142.84,142.77,5.79376475]
[1741325135111,231.14,142.84,142.79,29.66813471]
[1741325136014,231.14,142.84,142.8,0.04428824]
[1741325136015,7.002,142.82,142.8,0.04428824]
[1741325136311,0.04687275,142.83,142.8,0.04428824]
[1741325138606,7.0021,142.81,142.8,0.04428824]
[1741325139513,0.04687275,142.83,142.75,9.25088787]
[1741325139713,1.8778,142.82,142.76,31.16]
[1741325140015,231.1,142.83,142.76,31.16]
[1741325140216,7.0019,142.82,142.78,7.0033]
[1741325140613,3.9575,142.87,142.8,29.66813471]
[1741325140812,0.11968947,142.88,142.84,29.66813471]
[1741325141117,231.40911115,142.94,142.87,29.66813471]
[1741325141318,231.40911115,142.94,142.9,6.9977]
[1741325141705,231.40911115,142.94,142.88,31.28]
[1741325142002,231.40911115,142.94,142.89,0.04706544]
[1741325142003,0.04375209,142.92,142.89,0.04706544]
[1741325143104,0.04375209,142.92,142.89,48.17075073]
[1741325143818,0.04375209,142.92,142.9,6.9977]
[1741325145519,0.04375209,142.92,142.89,48.17075073]
[1741325145720,0.04375209,142.92,142.89,0.04706544]
[1741325146014,0.28911115,142.94,142.9,48.12368529]
[1741325146211,0.2831083,142.97,142.89,31.16706544]
[1741325146212,0.2831083,142.97,142.93,48.12368529]
[1741325146407,0.2831083,142.97,142.94,31.4]
[1741325147322,0.2831083,142.97,142.94,31.44561802]
[1741325147715,0.2831083,142.97,142.94,38.44121802]
[1741325148220,0.2831083,142.97,142.94,31.44561802]
[1741325148919,0.2831083,142.97,142.96,55.11848529]
[1741325149115,236.9727,143.09,142.96,55.11848529]
[1741325149323,31.3,143.08,142.99,48.12368529]
[1741325150010,186.9727,143.09,143.01,6.9922]
[1741325150216,186.9727,143.09,143.02,79.46368529]
[1741325150411,1.21674067,143.16,143.07,48.12368529]
[1741325150612,6.9874,143.12,143.07,79.88368529]
[1741325150821,15.2730618,143.19,143.1,0.047506]
[1741325151027,63.39674709,143.19,143.1,0.047506]
[1741325151225,6.9874,143.11,143.1,0.047506]
[1741325151529,31.74,143.15,143.07,79.88368529]
[1741325151828,31.74,143.15,143.1,3.753e-05]
[1741325152223,48.12368529,143.22,143.1,3.753e-05]
[1741325152224,346.46087232,143.26,143.1,3.753e-05]
[1741325152530,48.12368529,143.24,143.1,48.12368529]
[1741325152728,48.12368529,143.21,143.07,80.08368529]
[1741325153031,33.24443798,143.2,143.07,80.08368529]
[1741325153230,6.986,143.14,143.13,0.04903178]
[1741325153932,0.04569025,143.15,143.13,0.04903178]
[1741325154133,0.04569025,143.15,143.13,48.17271707]
[1741325155135,0.04569025,143.15,143.13,0.04903178]
[1741325155328,0.04569025,143.15,143.01,48.12368529]
[1741325155523,0.04569025,143.15,143.04,48.12368529]
[1741325155731,6.9878,143.11,143.04,48.12368529]
[1741325156132,31.86,143.17,143.04,48.12368529]
[1741325156330,5.8245,143.2,143.04,48.12368529]
[1741325156635,0.05246076,143.12,143.09,0.05272327]
[1741325156835,31.95246076,143.12,143.09,0.05272327]
[1741325157036,31.95246076,143.12,143.09,0.04757783]
[1741325157037,0.04839252,143.12,143.09,0.04757783]
[1741325157432,6.9883,143.1,143.09,0.04757783]
[1741325159036,0.04839252,143.12,143.09,0.04757783]
[1741325159339,0.04839252,143.12,143.1,48.12368529]
[1741325159539,0.04839252,143.12,143.1,80.30368529]
[1741325160241,232.6723,143.2,143.1,80.30368529]
[1741325160538,232.6723,143.2,143.07,32.12]
[1741325160736,232.6723,143.2,143.09,48.12368529]
[1741325160936,280.79598529,143.2,143.02,32.2]
[1741325161129,48.12368529,143.17,143.02,48.12368529]
[1741325161438,0.0470014,143.11,143.08,0.04848385]
[1741325161635,32.32,143.11,143.03,48.12368529]
[1741325161939,0.0470014,143.11,143.08,0.04906384]
[1741325162138,3.9953,143.16,143.09,48.12368529]
[1741325162334,0.0470014,143.11,143.09,48.12368529]
[1741325162541,3.9953,143.16,143.09,48.12368529]
[1741325162836,3.9953,143.16,143.09,48.16885691]
[1741325163041,0.0470014,143.14,143.12,48.12368529]
[1741325163245,194.0,143.33,143.13,48.12368529]
[1741325163431,6.9806,143.26,143.17,48.12368529]
[1741325163739,36.472,143.32,143.18,32.66]
[1741325163948,1.2834128,143.31,143.18,32.66]
[1741325164446,6.98,143.27,143.23,0.04555411]
[1741325164640,3.812,143.32,143.18,32.66]
[1741325164942,3.812,143.32,143.24,0.04529637]
[1741325165145,32.68,143.31,143.24,0.04529637]
[1741325166248,80.80368529,143.31,143.24,0.04529637]
[1741325166446,32.68,143.31,143.24,0.04529637]
[1741325167145,48.12368529,143.29,143.18,32.66]
[1741325167542,6.9829,143.21,143.15,32.56]
[1741325167742,263.12,143.25,143.15,32.56]
[1741325168044,6.985,143.16,143.15,32.56]
[1741325168344,6.985,143.16,143.14,0.04680131]
[1741325169143,0.04529637,143.17,143.14,0.04680131]
[1741325169348,0.04529637,143.17,143.14,48.1704866]
[1741325169747,0.04529637,143.17,143.14,55.1560866]
[1741325170040,0.04529637,143.17,143.14,48.1704866]
[1741325170447,3.7834,143.24,143.14,48.1704866]
[1741325170641,3.7834,143.24,143.14,48.12368529]
[1741325171041,3.7834,143.24,143.12,32.4]
[1741325171042,6.9865,143.13,143.12,32.4]
[1741325171345,32.4,143.2,143.09,32.38]
[1741325171545,32.38,143.19,143.11,48.12368529]
[1741325171748,6.9853,143.16,143.13,0.05110828]
[1741325171939,32.36,143.21,143.11,48.12368529]
[1741325172140,3.7834,143.24,143.14,48.12368529]
[1741325172346,3.7834,143.24,143.15,32.36]
[1741325172541,3.7834,143.24,143.18,0.0524407]
[1741325172851,6.9835,143.19,143.18,0.0524407]
[1741325174339,230.56,143.25,143.18,0.0524407]
[1741325174646,20.9267,143.36,143.18,0.0524407]
[1741325174647,6.0141,143.26,143.18,0.0524407]
[1741325174849,6.0141,143.26,143.17,48.12368529]
[1741325175049,6.0141,143.26,143.21,0.04995706]
[1741325175345,32.52950999,143.25,143.13,48.12368529]
[1741325175543,32.48,143.25,143.12,32.48]
[1741325175746,80.60368529,143.25,143.12,32.48]
[1741325175942,6.9834,143.2,143.13,55.10998529]
[1741325176150,36.5437,143.26,143.13,48.12368529]
[1741325176452,0.04517048,143.21,143.18,0.05063373]
[1741325176639,230.56517048,143.21,143.18,0.05063373]
[1741325176841,6.9835,143.19,143.18,0.05063373]
[1741325177244,230.56517048,143.21,143.18,0.05063373]
[1741325177442,6.9835,143.2,143.18,0.05063373]
[1741325177651,230.56517048,143.21,143.18,0.05063373]
[1741325178554,6.9835,143.19,143.18,0.05063373]
[1741325180550,6.9835,143.19,143.18,3.373e-05]
[1741325180752,39.3235,143.19,143.18,3.373e-05]
[1741325181148,44.7044,143.19,143.18,3.373e-05]
[1741325181855,92.82808529,143.19,143.18,3.373e-05]
[1741325182547,44.7044,143.19,143.18,3.373e-05]
[1741325187255,40.8644,143.19,143.18,3.373e-05]
[1741325188563,44.3644,143.19,143.18,3.373e-05]
[1741325189259,40.8644,143.19,143.18,3.373e-05]
[1741325189551,44.3644,143.19,143.18,3.373e-05]
[1741325190558,6.9874,143.11,143.1,37.46779343]
[1741325190758,6.9874,143.11,143.1,9.25088787]
[1741325190964,6.9879,143.1,143.09,43.76523149]
[1741325191164,6.9879,143.1,143.09,40.68053149]
[1741325192765,0.05070202,143.11,143.09,40.68053149]
[1741325193066,7.03830202,143.11,143.09,40.68053149]
[1741325193262,0.05070202,143.11,143.09,40.68053149]
[1741325194456,0.05070202,143.11,143.08,74.62616517]
[1741325194457,0.05070202,143.11,143.08,0.05273365]
[1741325194766,7.03810202,143.11,143.08,0.05273365]
[1741325195667,0.05070202,143.11,143.08,0.05273365]
[1741325196366,7.03830202,143.11,143.08,0.05273365]
[1741325198063,6.9881,143.1,143.08,0.05273365]
[1741325198270,0.05070202,143.11,143.08,0.05273365]
[1741325198569,262.19070202,143.11,143.08,0.05273365]
[1741325199065,6.9884,143.09,143.08,0.05273365]
[1741325199369,262.19070202,143.11,143.08,0.05273365]
[1741325201264,230.69070202,143.11,143.08,0.05273365]
[1741325201459,230.30741916,143.11,143.09,29.52250095]
[1741325201665,230.30741916,143.11,143.08,0.05273365]
[1741325202165,230.30741916,143.11,143.1,6.9879]
[1741325202361,230.64,143.17,143.08,0.05273365]
[1741325202670,230.64,143.23,143.15,6.9851]
[1741325202969,230.64,143.23,143.14,33.3456]
[1741325203168,0.04988877,143.2,143.18,0.04791501]
[1741325204365,0.04988877,143.2,143.19,6.9835]
[1741325204571,239.5466,143.29,143.19,29.52250095]
[1741325205268,232.5679,143.29,143.19,29.52250095]
[1741325205470,232.5679,143.29,143.18,31.32]
[1741325205670,232.5679,143.29,143.23,0.04519659]
[1741325207467,230.6,143.29,143.23,0.04519659]
[1741325208173,230.6,143.29,143.23,3.97359659]
[1741325208378,35.1192,143.34,143.23,3.97359659]
[1741325208569,35.1192,143.34,143.23,3.9284]
[1741325208769,3.9592,143.34,143.27,0.05371608]
[1741325209479,10.9358,143.34,143.27,0.05371608]
[1741325210373,6.9768,143.33,143.27,0.05371608]
[1741325211574,6.9773,143.32,143.27,0.05371608]
[1741325211874,3.9592,143.34,143.27,0.05371608]
[1741325212068,6.9778,143.31,143.27,0.05371608]
[1741325212669,3.9592,143.34,143.27,0.05371608]
[1741325213577,6.9792,143.28,143.27,0.05371608]
[1741325213971,29.52250095,143.29,143.22,30.86]
[1741325214172,6.9805,143.26,143.22,30.86]
[1741325214473,29.52250095,143.29,143.22,30.86]
[1741325215071,0.04622564,143.27,143.24,0.05322]
[1741325215373,6.9805,143.26,143.24,0.05322]
[1741325215570,0.04622564,143.27,143.24,0.05322]
[1741325215774,60.30250095,143.26,143.17,4.0138]
[1741325216074,62.30720095,143.26,143.17,4.0138]
[1741325216275,6.9819,143.23,143.17,4.0138]
[1741325216479,62.30720095,143.26,143.17,4.0138]
[1741325216668,6.982,143.23,143.17,4.0138]
[1741325216982,0.05125971,143.21,143.19,0.04519457]
[1741325217277,6.9838,143.19,143.13,1.9149]
[1741325217465,0.05125971,143.21,143.13,1.9149]
[1741325217466,30.76,143.22,143.13,1.9149]
[1741325217672,0.05210496,143.17,143.15,0.04411193]
[1741325217869,6.9829,143.21,143.15,0.04411193]
[1741325218071,0.05258069,143.17,143.15,0.04411193]
[1741325218266,6.984,143.19,143.15,0.04411193]
[1741325218477,60.24250095,143.2,143.09,3.7866]
[1741325218478,0.05105166,143.17,143.09,3.7866]
[1741325218671,0.05105166,143.17,143.16,0.04826434]
[1741325218872,0.05105166,143.17,143.1,30.92]
[1741325219073,0.05105166,143.17,143.15,0.05245883]
[1741325219273,0.05105166,143.17,143.12,0.04510423]
[1741325221875,7.03565166,143.17,143.12,0.04510423]
[1741325222373,0.05105166,143.17,143.12,0.04510423]
[1741325223169,7.03605166,143.17,143.12,0.04510423]
[1741325223378,0.05105166,143.17,143.12,0.04510423]
[1741325223577,6.9853,143.16,143.12,0.04510423]
[1741325223780,0.05105166,143.17,143.12,0.04510423]
[1741325224078,6.9858,143.15,143.12,0.04510423]
[1741325224490,0.05105166,143.17,143.12,0.04510423]
[1741325225285,6.9865,143.13,143.12,0.04510423]
[1741325225889,7.03700683,143.14,143.12,0.04510423]
[1741325226189,0.05090683,143.14,143.12,0.04510423]
[1741325226490,7.03710683,143.14,143.12,0.04510423]
[1741325226990,0.05090683,143.14,143.12,0.04510423]
[1741325229191,6.9865,143.13,143.12,0.04510423]
[1741325229994,0.05090683,143.14,143.02,73.24898882]
[1741325230192,1.935,143.13,143.02,75.15468882]
[1741325230995,6.9877,143.11,143.03,6.9913]
[1741325231194,0.05317329,143.09,143.06,0.04639373]
[1741325235800,7.04197329,143.09,143.06,0.04639373]
[1741325236203,0.05317329,143.09,143.06,0.04639373]
[1741325236403,7.04177329,143.09,143.06,0.04639373]
[1741325237202,0.05317329,143.09,143.06,0.04639373]
[1741325237399,6.9891,143.08,143.06,0.04639373]
[1741325237701,30.18,143.07,142.98,3.9608]
[1741325238506,30.18,143.07,143.0,29.52250095]
[1741325238903,0.04491192,143.05,143.02,0.0469776]
[1741325239397,7.03561192,143.05,143.02,0.0469776]
[1741325240002,6.9911,143.04,143.02,0.0469776]
[1741325240205,0.04491192,143.05,143.02,0.0469776]
[1741325240706,6.9914,143.03,143.02,0.0469776]
[1741325241099,7.03551192,143.05,143.02,0.0469776]
[1741325241407,0.04491192,143.05,143.02,0.0469776]
[1741325244899,29.96,143.04,143.02,0.0469776]
[1741325245103,6.9914,143.03,143.02,0.0469776]
[1741325246296,29.96,143.04,142.92,29.52250095]
[1741325246703,29.52250095,143.02,142.9,31.57790095]
[1741325246902,6.9925,143.01,142.9,65.44090095]
[1741325247101,29.96,143.04,142.9,65.44090095]
[1741325247501,0.05082565,142.98,142.96,0.04462737]
[1741325247701,29.96,143.04,142.96,0.04462737]
[1741325247905,0.0513901,142.98,142.96,0.04462737]
[1741325248106,0.044706,142.98,142.96,0.04462737]
[1741325248811,7.038606,142.98,142.96,0.04462737]
[1741325249110,0.044706,142.98,142.96,0.04462737]
[1741325249304,6.9943,142.97,142.96,0.04462737]
[1741325251211,7.038706,142.98,142.96,0.04462737]
[1741325251410,0.044706,142.98,142.96,0.04462737]
[1741325251605,0.044706,142.98,142.96,36.56172832]
[1741325251910,0.044706,142.98,142.96,0.04462737]
[1741325252312,6.9943,142.97,142.96,0.04462737]
[1741325252506,0.044706,142.98,142.9,31.9154]
[1741325252706,29.88,142.97,142.88,29.88]
[1741325252915,59.40250095,142.97,142.87,29.88]
[1741325253115,1.986,142.96,142.87,29.88]
[1741325253520,29.52250095,142.94,142.87,29.88]
[1741325253717,0.05144268,142.93,142.9,0.04523245]
[1741325254325,29.87144268,142.93,142.84,37.46779343]
[1741325254620,29.82,142.93,142.84,67.28779343]
[1741325254816,6.9978,142.9,142.84,74.28819343]
[1741325255010,1.986,142.96,142.84,59.34250095]
[1741325255215,1.986,142.96,142.87,29.52250095]
[1741325255415,0.04505789,142.93,142.9,0.04927939]
[1741325257022,6.9971,142.92,142.9,0.04927939]
[1741325257214,0.04505789,142.93,142.9,0.04927939]
[1741325257722,6.9971,142.92,142.9,0.04927939]
[1741325257913,0.04505789,142.93,142.9,0.04927939]
[1741325258320,6.9972,142.91,142.9,0.04927939]
[1741325259520,6.9995,142.87,142.83,4.0075]